bitfinex/quotes_ETHUSD_20241004
["timestamp","ask_amount","ask_price","bid_price","bid_amount"]
[1728004765568,0.1178821,2356.4,2356.3,9.8271197]
[1728004767275,0.1178821,2356.4,2356.3,10.3771197]
[1728004767919,0.1178821,2356.4,2356.3,14.39798621]
[1728004768081,5.05902,2357.7,2357.1,0.8277]
[1728004768306,5.05902,2357.7,2357.2,0.5111355]
[1728004768307,4.24162,2357.6,2357.2,0.5111355]
[1728004768615,4.24162,2357.6,2357.3,0.98443255]
[1728004768793,5.05902,2357.7,2357.3,0.4263]
[1728004768794,4.24178,2357.5,2357.3,0.4263]
[1728004768993,8.48368,2357.5,2357.3,0.4263]
[1728004769193,4.24178,2357.5,2357.3,0.4263]
[1728004769445,8.48372,2357.5,2357.3,0.4263]
[1728004769637,4.24196,2357.4,2357.3,0.4263]
[1728004769805,4.24196,2357.4,2357.1,0.4263]
[1728004770141,4.24196,2357.4,2357.1,1.20498976]
[1728004772399,4.24178,2357.5,2357.1,1.20498976]
[1728004772599,8.48373,2357.5,2357.1,1.20498976]
[1728004773344,4.24196,2357.4,2357.1,1.20498976]
[1728004773529,0.8175,2357.3,2356.9,0.4263]
[1728004773738,5.05682,2357.5,2357.0,0.8223]
[1728004774048,4.24217,2357.3,2356.8,8.2823]
[1728004774411,4.2421,2357.4,2356.8,8.2823]
[1728004774412,4.24243,2357.2,2356.9,0.4263]
[1728004774748,5.05704,2357.4,2356.9,3.4263]
[1728004774901,5.05704,2357.4,2357.0,0.84915]
[1728004775349,0.815,2357.4,2357.0,0.84915]
[1728004775549,9.29844,2357.6,2357.1,1.2486]
[1728004775921,4.24179,2357.5,2357.1,1.2486]
[1728004776121,4.24206,2357.4,2357.1,0.4263]
[1728004776365,8.48417,2357.4,2357.1,0.4263]
[1728004776510,4.24216,2357.3,2357.1,0.4263]
[1728004777213,4.24216,2357.3,2356.9,0.8223]
[1728004777214,4.24216,2357.3,2357.0,0.4263]
[1728004777719,4.24245,2357.2,2357.0,0.4263]
[1728004777920,4.24245,2357.2,2356.5,4.24354]
[1728004777921,0.815,2357.2,2356.9,0.4263]
[1728004778355,4.2425,2357.1,2356.9,0.4263]
[1728004780043,4.2425,2357.1,2356.7,0.4263]
[1728004780387,0.815,2356.9,2356.7,0.4263]
[1728004780512,0.815,2357.2,2356.9,0.4263]
[1728004780710,4.24203,2357.4,2356.9,4.66915]
[1728004780914,4.24203,2357.4,2356.9,5.22679838]
[1728004780915,0.815,2357.4,2356.9,5.22679838]
[1728004781346,0.815,2357.4,2357.0,4.24267]
[1728004782018,4.2419,2357.5,2357.1,4.2486]
[1728004782219,4.2419,2357.5,2357.2,1.28186917]
[1728004783635,5.05706,2357.4,2357.1,0.4263]
[1728004784525,5.05706,2357.4,2357.0,0.4263]
[1728004784725,0.815,2357.4,2357.0,0.4263]
[1728004785126,4.24278,2357.0,2356.7,0.8223]
[1728004785460,5.05778,2357.0,2356.5,0.8223]
[1728004785668,9.30056,2357.0,2356.5,0.8223]
[1728004785823,0.815,2357.0,2356.5,5.06586]
[1728004786023,0.815,2357.0,2356.6,1.676944]
[1728004786226,0.815,2357.0,2356.7,0.4252]
[1728004786656,5.05785,2357.0,2356.7,0.4252]
[1728004787069,4.24295,2356.9,2356.7,0.4252]
[1728004787250,4.24304,2356.8,2356.5,3.0]
[1728004787459,4.24304,2356.8,2356.5,4.17075]
[1728004787828,0.815,2356.6,2356.1,0.8223]
[1728004788030,0.815,2356.6,2356.1,5.0665]
[1728004788363,4.24344,2356.6,2356.3,0.4252]
[1728004788553,5.05844,2356.6,2356.3,0.4252]
[1728004788756,4.24368,2356.5,2356.0,0.786]
[1728004789064,4.24368,2356.5,2356.1,0.503049]
[1728004789268,4.2439,2356.4,2356.1,0.503049]
[1728004789481,4.2439,2356.4,2356.0,1.2112]
[1728004789962,5.05849,2356.6,2356.0,1.2112]
[1728004790166,5.05849,2356.6,2356.1,0.4252]
[1728004790476,4.24369,2356.5,2356.1,0.4252]
[1728004790777,5.05849,2356.6,2356.1,5.215074]
[1728004790975,0.815,2356.6,2356.1,9.459364]
[1728004791168,5.0584,2356.6,2356.1,5.215074]
[1728004791468,4.2434,2356.6,2356.1,5.215074]
[1728004792061,4.2434,2356.6,2356.1,0.970784]
[1728004792385,4.24376,2356.4,2356.1,0.970784]
[1728004795580,4.24361,2356.5,2356.1,0.970784]
[1728004795786,4.2435,2356.6,2356.1,3.970784]
[1728004795981,4.2435,2356.6,2356.2,0.9001104]
[1728004796879,8.487,2356.6,2356.2,0.9001104]
[1728004797276,4.2435,2356.6,2356.2,0.9001104]
[1728004797479,4.2419,2356.6,2356.2,0.9001104]
[1728004797802,8.479,2356.6,2356.2,0.9001104]
[1728004798117,4.2355,2356.6,2356.2,0.9001104]
[1728004798541,4.2275,2356.6,2356.2,0.9001104]
[1728004798842,4.2436,2356.5,2356.2,0.9001104]
[1728004799138,4.2275,2356.6,2356.3,0.48708944]
[1728004799347,4.2275,2356.6,2356.4,0.786]
[1728004799348,8.46382,2356.6,2356.4,0.786]
[1728004799701,4.24358,2356.5,2356.4,0.786]
[1728004799897,4.24278,2356.5,2356.3,0.4252]
[1728004800139,4.2179,2356.6,2356.3,0.4252]
[1728004800440,8.45665,2356.6,2356.3,0.4252]
[1728004800641,4.24448,2356.0,2355.9,0.8840528]
[1728004800843,4.2439,2356.4,2355.6,0.786]
[1728004800844,4.24473,2355.9,2355.6,0.786]
[1728004801148,0.925065,2356.6,2355.6,0.786]
[1728004801149,4.24449,2356.0,2355.6,0.786]
[1728004801639,4.24369,2356.0,2355.6,1.2112]
[1728004802296,4.24369,2356.0,2355.7,0.42112]
[1728004802501,4.24324,2356.7,2355.7,0.50601352]
[1728004802502,8.4881,2356.3,2355.7,0.50601352]
[1728004802738,8.4881,2356.3,2355.9,0.786]
[1728004802739,4.24402,2356.3,2355.9,0.786]
[1728004802926,4.24368,2356.5,2355.9,5.03066]
[1728004803507,8.48736,2356.5,2355.9,5.03055]
[1728004803816,4.24368,2356.5,2356.1,0.4252]
[1728004804306,8.48736,2356.5,2356.1,0.4252]
[1728004804507,4.24368,2356.5,2356.2,0.7529]
[1728004805251,8.48741,2356.5,2356.2,0.7529]
[1728004805948,0.8251,2356.8,2355.9,1.1781]
[1728004806103,4.24412,2356.2,2355.9,2.369158]
[1728004806515,4.24309,2356.8,2356.0,0.7529]
[1728004806516,4.2436,2356.5,2356.0,0.7529]
[1728004806847,4.2436,2356.5,2356.1,0.3122058]
[1728004807331,4.2435,2356.6,2356.1,0.3122058]
[1728004807528,4.24378,2356.4,2356.1,0.3122058]
[1728004808639,4.24412,2356.2,2356.1,0.3122058]
[1728004810041,4.24378,2356.4,2356.1,0.3122058]
[1728004810209,4.24378,2356.4,2356.2,0.7529]
[1728004811061,4.24412,2356.2,2356.1,0.3122058]
[1728004811209,4.24412,2356.2,2356.0,0.7529]
[1728004811533,4.24412,2356.2,2355.8,1.1781]
[1728004811734,4.24412,2356.2,2355.9,0.459922]
[1728004813060,4.24412,2356.2,2355.8,1.1781]
[1728004813255,4.24438,2356.1,2355.8,1.1781]
[1728004813548,4.24412,2356.2,2355.8,1.1781]
[1728004813754,5.06894,2356.4,2355.9,3.0]
[1728004814110,4.24413,2356.2,2355.8,4.1781]
[1728004814435,4.24441,2356.1,2355.8,0.7529]
[1728004814847,4.24441,2356.1,2355.7,3.84632]
[1728004815150,4.24441,2356.1,2355.7,3.42112]
[1728004815351,5.06961,2356.0,2355.7,3.0]
[1728004815562,5.06961,2356.0,2355.4,0.7529]
[1728004815563,4.24478,2355.9,2355.4,4.1781]
[1728004815852,4.24478,2355.9,2355.4,3.7529]
[1728004816052,4.24478,2355.9,2355.5,1.26357381]
[1728004817052,4.24566,2355.4,2354.9,5.8832728]
[1728004817347,4.24577,2355.3,2354.9,1.14456126]
[1728004817552,4.24577,2355.3,2354.7,5.1307728]
[1728004817553,4.24577,2355.3,2354.8,0.81686126]
[1728004817712,4.24577,2355.3,2354.9,0.58164813]
[1728004818161,5.07076,2355.4,2354.9,0.58164813]
[1728004818456,5.07076,2355.4,2355.0,3.0]
[1728004818625,4.24566,2355.4,2355.0,3.0]
[1728004819859,4.24406,2356.3,2355.2,4.24576]
[1728004819860,5.04339,2355.8,2355.2,4.24576]
[1728004820013,5.04339,2355.8,2355.3,3.08490618]
[1728004820214,5.04339,2355.8,2355.3,3.0]
[1728004820737,5.04339,2355.8,2355.2,3.4252]
[1728004821169,4.24504,2355.7,2355.2,3.4252]
[1728004821937,4.24504,2355.7,2355.2,7.67112]
[1728004822289,4.24504,2355.7,2355.3,1.270638]
[1728004822430,0.7985,2356.0,2355.4,0.7893]
[1728004822636,4.24386,2356.4,2355.8,5.03414]
[1728004822947,8.48779,2356.4,2355.9,0.58829989]
[1728004823253,4.24413,2356.2,2355.8,3.7893]
[1728004824443,4.24431,2356.1,2355.8,0.7893]
[1728004824890,4.24413,2356.2,2355.8,0.7893]
[1728004825190,4.24413,2356.2,2355.8,3.7893]
[1728004825389,4.24413,2356.2,2355.8,4.892731]
[1728004826412,4.24413,2356.2,2355.8,4.97761757]
[1728004826586,4.24431,2356.1,2355.8,1.103431]
[1728004827066,4.24431,2356.1,2355.6,3.7893]
[1728004828059,4.24449,2356.0,2355.6,0.7893]
[1728004828295,4.24424,2356.2,2355.7,4.24501]
[1728004828498,4.24424,2356.2,2355.8,3.0]
[1728004828652,4.24424,2356.2,2355.8,3.803431]
[1728004830494,4.24449,2356.0,2355.5,3.0]
[1728004830865,5.04326,2355.9,2355.5,3.0]
[1728004831066,0.7985,2355.9,2355.4,0.7893]
[1728004831304,4.24454,2356.0,2355.6,3.0]
[1728004831487,4.24454,2356.0,2355.6,0.85447489]
[1728004831656,4.24454,2356.0,2355.5,0.4252]
[1728004831982,4.24466,2355.9,2355.4,3.7893]
[1728004832179,4.24501,2355.8,2355.4,3.7893]
[1728004832385,4.24466,2355.9,2355.4,0.7893]
[1728004832386,4.24504,2355.7,2355.4,0.7893]
[1728004832579,4.24466,2355.9,2355.4,0.7893]
[1728004832781,4.24466,2355.9,2355.5,0.85450932]
[1728004833700,8.48945,2355.9,2355.5,0.85450932]
[1728004834069,4.24487,2355.8,2355.5,0.85450932]
[1728004835356,4.24504,2355.7,2355.5,0.85450932]
[1728004835559,5.01676,2355.9,2355.4,0.7893]
[1728004835760,4.2449,2355.8,2355.4,0.7893]
[1728004836206,5.01676,2355.9,2355.4,0.7893]
[1728004836408,5.01676,2355.9,2355.5,0.93442728]
[1728004836915,9.26159,2355.9,2355.5,0.93442728]
[1728004837682,9.26152,2355.9,2355.5,0.93442728]
[1728004837882,5.01676,2355.9,2355.5,0.93442728]
[1728004838887,4.2449,2355.8,2355.5,0.93442728]
[1728004839218,4.24466,2355.9,2355.5,0.93442728]
[1728004839715,4.24466,2355.9,2355.6,0.47237273]
[1728004841410,4.24466,2355.9,2355.5,0.93442728]
[1728004841816,4.24466,2355.9,2355.3,5.5548928]
[1728004841817,4.2455,2355.5,2355.3,0.8840528]
[1728004842003,4.2455,2355.5,2355.0,2.21323005]
[1728004842004,4.24574,2355.3,2355.0,1.6977528]
[1728004842214,4.2461,2355.1,2354.9,0.8840528]
[1728004842379,8.49235,2355.1,2354.9,0.47919172]
[1728004842579,5.01788,2355.3,2354.9,0.47919172]
[1728004842884,5.01788,2355.3,2354.8,2.08915828]
[1728004842885,4.24557,2355.4,2354.8,0.8137]
[1728004843079,4.24592,2355.2,2354.8,0.8137]
[1728004843287,4.24611,2355.1,2354.8,0.8137]
[1728004843510,4.24611,2355.1,2354.7,1.3092528]
[1728004843807,4.24611,2355.1,2354.8,3.0]
[1728004844008,0.7721,2355.1,2354.8,3.0]
[1728004844235,0.7721,2355.1,2354.7,5.2841392]
[1728004845448,8.49137,2355.4,2354.8,0.8137]
[1728004845730,4.24567,2355.4,2354.8,3.8137]
[1728004845933,4.24567,2355.4,2354.8,5.49387312]
[1728004846122,4.24594,2355.2,2354.8,5.49387312]
[1728004846325,4.24611,2355.1,2354.8,3.0]
[1728004846525,4.24611,2355.1,2354.7,5.2841392]
[1728004846722,4.24611,2355.1,2354.7,4.8589392]
[1728004846914,4.24611,2355.1,2354.7,1.8589392]
[1728004847405,5.01804,2355.2,2354.7,2.2841392]
[1728004847605,5.01804,2355.2,2354.8,4.37780092]
[1728004847839,9.26411,2355.2,2354.8,4.37780092]
[1728004848137,9.26411,2355.2,2354.6,4.24689]
[1728004848138,4.24612,2355.1,2354.6,3.0]
[1728004848640,4.24628,2355.0,2354.6,3.0]
[1728004848809,4.24612,2355.1,2354.6,3.0]
[1728004848992,8.49233,2355.1,2354.6,3.0]
[1728004849196,4.24647,2354.9,2354.6,3.0]
[1728004849644,4.24612,2355.1,2354.6,3.0]
[1728004849823,8.49233,2355.1,2354.6,5.10772828]
[1728004850330,4.24612,2355.1,2354.6,5.10772828]
[1728004850534,4.24612,2355.1,2354.5,3.8137]
[1728004850847,4.2458,2355.3,2354.7,5.03582]
[1728004851247,4.24592,2355.2,2354.7,0.87402482]
[1728004851412,4.24592,2355.2,2354.7,0.7891]
[1728004851611,4.24611,2355.1,2354.7,0.7891]
[1728004852011,4.24648,2354.9,2354.6,0.7891]
[1728004852844,4.24611,2355.1,2354.6,0.7891]
[1728004852845,4.24631,2355.0,2354.6,0.7891]
[1728004853908,4.2459,2355.3,2354.6,0.7891]
[1728004854249,4.24607,2355.2,2354.6,5.46115]
[1728004854448,4.24607,2355.2,2354.8,0.4252]
[1728004856030,4.24607,2355.2,2354.9,0.7891]
[1728004856237,4.2459,2355.3,2354.9,0.7891]
[1728004856435,8.49177,2355.3,2354.9,0.7891]
[1728004857062,4.24594,2355.2,2354.9,0.7891]
[1728004857236,4.24594,2355.2,2354.9,1.7197739]
[1728004860970,4.24587,2355.3,2354.9,1.7197739]
[1728004861173,4.2461,2355.1,2354.9,1.7197739]
[1728004861477,4.24587,2355.3,2354.9,1.7197739]
[1728004862054,8.49102,2355.5,2355.0,0.87401975]
[1728004862384,8.49102,2355.5,2355.0,0.7891]
[1728004862385,4.2455,2355.5,2355.0,0.7891]
[1728004862674,4.24593,2355.2,2355.0,0.7891]
[1728004862876,8.49132,2355.4,2355.0,0.7891]
[1728004863079,8.49128,2355.4,2355.0,0.7891]
[1728004863438,4.2456,2355.4,2355.0,0.7891]
[1728004863779,4.2456,2355.4,2355.0,3.7891]
[1728004863977,4.24532,2355.6,2355.1,1.26274201]
[1728004864178,4.24495,2355.8,2355.3,0.7564]
[1728004864179,4.24503,2355.7,2355.3,0.7564]
[1728004864565,4.24503,2355.7,2355.3,1.1816]
[1728004865169,4.2452,2355.6,2355.3,1.1816]
[1728004865389,4.24556,2355.4,2355.1,1.17783]
[1728004865544,4.99938,2355.9,2355.2,0.7564]
[1728004865545,4.24497,2355.8,2355.2,0.7564]
[1728004865736,4.24497,2355.8,2355.3,3.0]
[1728004865942,4.24458,2356.0,2355.5,0.7564]
[1728004866139,4.24458,2356.0,2355.6,0.50867668]
[1728004868060,0.7547,2356.3,2355.5,0.7564]
[1728004868243,4.24514,2355.7,2355.3,0.7564]
[1728004868439,0.7547,2355.8,2355.3,0.7564]
[1728004868440,4.24541,2355.5,2355.3,0.7564]
[1728004869941,4.24514,2355.7,2355.3,0.7564]
[1728004870146,4.24475,2355.9,2355.4,4.24554]
[1728004870386,4.24475,2355.9,2355.3,0.7564]
[1728004870387,4.24475,2355.9,2355.5,0.500194]
[1728004870586,4.24475,2355.9,2355.3,3.7564]
[1728004870886,4.24505,2355.7,2355.3,3.7564]
[1728004871044,4.24521,2355.6,2355.3,0.7564]
[1728004871240,4.24505,2355.7,2355.0,5.1302328]
[1728004871241,4.24556,2355.4,2355.0,3.8840528]
[1728004871443,0.7547,2355.7,2355.1,0.7564]
[1728004871444,4.24586,2355.3,2355.1,0.7564]
[1728004871645,4.24586,2355.3,2354.7,0.8840528]
[1728004871646,4.24624,2355.1,2354.7,0.8840528]
[1728004871843,4.24639,2355.0,2354.7,0.7564]
[1728004872149,4.24624,2355.1,2354.7,0.7564]
[1728004872150,4.24649,2354.9,2354.7,0.7564]
[1728004872360,8.49246,2355.1,2354.7,0.7564]
[1728004872561,4.24621,2355.1,2354.7,1.34515828]
[1728004873087,8.49243,2355.1,2354.7,1.34515828]
[1728004873473,4.24593,2355.2,2354.7,1.43009179]
[1728004873799,4.24593,2355.2,2354.7,1.34515828]
[1728004874002,5.00055,2355.3,2354.8,0.43451583]
[1728004874224,5.00055,2355.3,2354.8,3.43451583]
[1728004874720,4.24595,2355.2,2354.8,3.43451583]
[1728004875074,4.24612,2355.1,2354.8,0.43451583]
[1728004875415,9.24642,2355.3,2354.8,0.43451583]
[1728004876112,4.24595,2355.2,2354.8,3.43451583]
[1728004876321,4.2461,2355.1,2354.8,0.43451583]
[1728004876522,5.00055,2355.3,2354.8,0.43451583]
[1728004876523,9.24646,2355.3,2354.8,0.43451583]
[1728004876674,8.491,2355.5,2354.9,4.2464]
[1728004876875,8.491,2355.5,2355.0,0.7564]
[1728004877631,4.24549,2355.5,2355.0,5.00265]
[1728004877926,4.24513,2355.7,2355.2,4.24585]
[1728004878136,4.24513,2355.7,2355.2,0.7564]
[1728004878281,8.49032,2355.7,2355.2,0.7564]
[1728004878479,4.24521,2355.6,2355.2,1.256638]
[1728004878782,4.24513,2355.7,2355.2,1.256638]
[1728004879985,0.7547,2356.0,2355.2,0.7564]
[1728004880189,8.49134,2355.4,2355.0,0.8058]
[1728004880390,4.24567,2355.4,2355.0,0.8058]
[1728004880589,4.24574,2355.3,2355.0,2.5883676]
[1728004881055,4.2461,2355.1,2354.9,3.0]
[1728004881191,4.24593,2355.2,2354.8,1.24031583]
[1728004882394,8.49141,2355.4,2354.8,1.24031583]
[1728004882594,4.24606,2355.2,2354.8,1.24031583]
[1728004883018,8.49141,2355.4,2354.8,1.24031583]
[1728004883416,4.24576,2355.3,2354.9,1.36178086]
[1728004884090,4.24568,2355.4,2354.9,1.36178086]
[1728004884291,4.24592,2355.2,2354.9,1.36178086]
[1728004884821,0.8317,2355.6,2354.9,1.36178086]
[1728004884822,5.077,2355.6,2354.9,1.36178086]
[1728004884995,5.077,2355.6,2355.1,0.8058]
[1728004884996,8.49066,2355.6,2355.1,0.8058]
[1728004885192,4.24556,2355.4,2355.1,0.8058]
[1728004885718,4.2453,2355.6,2355.1,0.8058]
[1728004886031,4.2453,2355.6,2355.1,5.0519]
[1728004886236,4.2453,2355.6,2355.2,0.50519]
[1728004887023,9.32164,2355.8,2355.2,4.75106]
[1728004887234,5.07666,2355.8,2355.2,4.75106]
[1728004887535,4.24531,2355.6,2355.2,0.50519]
[1728004888461,4.24531,2355.6,2355.3,0.64411428]
[1728004889605,4.2452,2355.7,2355.3,0.64411428]
[1728004889929,8.49039,2355.7,2355.3,0.64411428]
[1728004890086,4.24549,2355.5,2355.1,0.8058]
[1728004890503,4.24567,2355.4,2355.1,0.8058]
[1728004890729,4.24549,2355.5,2355.1,0.8058]
[1728004890927,8.49099,2355.5,2355.1,0.8058]
[1728004891237,4.24549,2355.5,2355.1,0.8058]
[1728004891530,4.24549,2355.5,2355.1,1.69942028]
[1728004891741,4.24513,2355.7,2355.1,1.69942028]
[1728004892510,4.2453,2355.6,2355.1,1.69942028]
[1728004892899,4.2453,2355.6,2355.1,5.94551028]
[1728004893224,4.24513,2355.7,2355.1,1.69942028]
[1728004893225,4.24538,2355.5,2355.1,1.69942028]
[1728004894413,4.24576,2355.3,2355.1,0.8058]
[1728004895407,4.24576,2355.3,2354.9,3.7728]
[1728004895594,4.24576,2355.3,2354.9,0.7728]
[1728004897810,4.24593,2355.2,2354.9,0.7728]
[1728004898041,4.24576,2355.3,2354.9,0.7728]
[1728004898210,4.24576,2355.3,2354.9,2.3461419]
[1728004898554,4.24609,2355.2,2354.9,0.7728]
[1728004898755,4.24576,2355.3,2354.9,0.7728]
[1728004900353,4.24576,2355.3,2354.9,1.6584642]
[1728004900774,4.2461,2355.1,2354.9,1.6584642]
[1728004900951,4.24576,2355.3,2354.9,0.7728]
[1728004900952,8.49165,2355.3,2354.9,0.7728]
[1728004901270,4.24611,2355.1,2354.9,0.7728]
[1728004901434,8.49237,2355.1,2354.9,0.7728]
[1728004901820,4.24628,2355.0,2354.8,0.8856642]
[1728004902139,4.24628,2355.0,2354.6,1.77132841]
[1728004902140,4.24664,2354.8,2354.6,3.8856642]
[1728004902324,4.24664,2354.8,2354.6,0.8856642]
[1728004902525,4.24664,2354.8,2354.5,1.6584642]
[1728004902761,4.24641,2355.0,2354.5,3.08962736]
[1728004902762,4.24639,2355.0,2354.5,3.08962736]
[1728004903066,4.24668,2354.8,2354.5,1.6584642]
[1728004903427,4.24668,2354.8,2354.5,0.8856642]
[1728004903428,9.31882,2354.8,2354.5,0.8856642]
[1728004903625,5.07208,2354.8,2354.5,0.8856642]
[1728004904161,0.8254,2354.8,2354.5,0.8856642]
[1728004904359,4.24637,2355.0,2354.6,0.7728]
[1728004904661,8.49282,2355.0,2354.6,0.7728]
[1728004904962,4.24637,2355.0,2354.6,0.7728]
[1728004905776,8.49281,2355.0,2354.6,0.7728]
[1728004906057,8.4928,2355.0,2354.6,0.7728]
[1728004906660,4.24637,2355.0,2354.6,0.7728]
[1728004906974,4.24603,2355.2,2354.6,1.70590142]
[1728004907125,4.24564,2355.4,2354.7,0.7728]
[1728004907476,4.24594,2355.2,2354.7,5.01949]
[1728004907763,4.24594,2355.2,2354.8,0.68382556]
[1728004908135,8.49137,2355.4,2354.8,0.68382556]
[1728004908338,4.24583,2355.3,2354.8,0.68382556]
[1728004908540,4.24592,2355.2,2354.8,0.68382556]
[1728004909265,4.24564,2355.4,2354.8,0.68382556]
[1728004909571,4.24564,2355.4,2354.9,5.63398398]
[1728004910769,4.24564,2355.4,2354.9,5.7189037]
[1728004911107,4.2453,2355.6,2355.1,0.806]
[1728004911277,4.2453,2355.6,2355.1,3.806]
[1728004911434,8.49062,2355.6,2355.2,0.89378342]
[1728004911634,8.48989,2355.8,2355.3,0.806]
[1728004911836,4.24418,2356.2,2355.3,0.806]
[1728004911837,4.24459,2356.0,2355.3,0.806]
[1728004912167,4.24459,2356.0,2355.6,0.806]
[1728004913246,4.2442,2356.2,2355.7,0.806]
[1728004913562,4.24432,2356.1,2355.7,3.806]
[1728004914077,4.2442,2356.2,2355.8,0.806]
[1728004914278,4.2442,2356.2,2355.8,2.04411758]
[1728004917919,0.757,2356.6,2355.8,2.04411758]
[1728004918092,4.24377,2356.4,2355.9,0.806]
[1728004918470,4.24399,2356.3,2355.9,0.806]
[1728004919289,4.24373,2356.5,2355.9,0.806]
[1728004919623,4.24377,2356.4,2355.9,0.806]
[1728004919777,4.24377,2356.4,2356.0,0.505072]
[1728004921107,4.24405,2356.3,2356.0,0.505072]
[1728004922758,4.24378,2356.4,2356.0,0.505072]
[1728004923328,4.24368,2356.5,2356.0,0.505072]
[1728004923533,4.24376,2356.4,2356.0,0.505072]
[1728004924044,0.757,2357.1,2356.3,3.806]
[1728004924247,4.24297,2356.9,2356.5,0.806]
[1728004925338,4.99961,2357.1,2356.2,0.7626]
[1728004925339,4.2434,2356.6,2356.2,0.7626]
[1728004926412,4.24323,2356.7,2356.2,0.7626]
[1728004926629,5.00021,2356.7,2356.2,0.7626]
[1728004926831,4.24369,2356.5,2356.2,0.7626]
[1728004927104,8.48744,2356.5,2356.2,0.7626]
[1728004927319,4.24392,2356.4,2356.0,0.7626]
[1728004927645,4.24369,2356.5,2356.0,0.7626]
[1728004927940,4.2435,2356.6,2356.1,3.37626]
[1728004928141,4.24301,2356.9,2356.4,4.24369]
[1728004928448,4.24269,2357.0,2356.4,4.24373]
[1728004928601,4.24269,2357.0,2356.4,5.211262]
[1728004928996,4.24269,2357.0,2356.4,0.967532]
[1728004929309,4.24243,2357.2,2356.6,4.24326]
[1728004930282,4.24254,2357.1,2356.5,0.7626]
[1728004930445,4.742484,2357.1,2356.5,0.7626]
[1728004931290,4.24317,2356.8,2356.4,3.7626]
[1728004931495,4.99981,2356.9,2356.4,3.7626]
[1728004931847,4.24322,2356.7,2356.4,3.7626]
[1728004932074,4.24322,2356.7,2356.4,0.7626]
[1728004932246,9.24281,2356.9,2356.4,3.7626]
[1728004932441,4.24304,2356.8,2356.4,4.905769]
[1728004932691,4.24304,2356.8,2356.4,0.7626]
[1728004933196,4.24323,2356.7,2356.4,0.7626]
[1728004934003,4.24291,2356.9,2356.4,0.7626]
[1728004934004,4.24291,2356.9,2356.4,3.7626]
[1728004934158,4.99946,2357.1,2356.4,3.7626]
[1728004934367,4.24256,2357.1,2356.6,0.7626]
[1728004934659,4.24256,2357.1,2356.6,3.7626]
[1728004935277,4.24256,2357.1,2356.6,8.00597]
[1728004935463,4.24256,2357.1,2356.6,3.7626]
[1728004935679,4.24256,2357.1,2356.7,0.7626]
[1728004935877,4.2428,2357.0,2356.5,0.7626]
[1728004936079,8.48563,2357.0,2356.5,0.7626]
[1728004936277,4.2428,2357.0,2356.5,0.7626]
[1728004936478,4.2428,2357.0,2356.7,0.7626]
[1728004936671,8.48493,2357.2,2356.7,0.7626]
[1728004936875,4.24257,2357.1,2356.7,0.7626]
[1728004937063,4.24244,2357.2,2356.7,0.7626]
[1728004937437,4.24251,2357.1,2356.7,2.0676065]
[1728004937717,4.24219,2357.3,2356.8,0.7626]
[1728004938009,4.24219,2357.3,2356.8,5.00563]
[1728004938210,0.7569,2357.5,2356.8,0.7626]
[1728004938211,4.24265,2357.1,2356.8,0.7626]
[1728004938398,4.666915,2357.1,2356.8,0.7626]
[1728004938565,4.24265,2357.1,2356.8,0.7626]
[1728004939513,4.24235,2357.2,2356.8,0.7626]
[1728004939811,4.24257,2357.1,2356.8,0.7626]
[1728004939971,4.24235,2357.2,2356.8,0.7626]
[1728004940593,8.48478,2357.2,2356.8,0.7626]
[1728004940765,4.24261,2357.1,2356.8,0.7626]
[1728004941243,4.24235,2357.2,2356.8,0.7626]
[1728004941411,4.24207,2357.4,2356.8,0.7626]
[1728004941586,4.24219,2357.3,2356.8,5.806188]
[1728004941992,4.24166,2357.6,2357.0,5.00522]
[1728004942282,4.24166,2357.6,2357.1,8.00508]
[1728004942482,4.24166,2357.6,2357.1,0.7626]
[1728004943087,4.24166,2357.6,2357.1,5.00509]
[1728004943422,4.24166,2357.6,2357.2,0.80899317]
[1728004945014,4.24166,2357.6,2357.3,0.7626]
[1728004945199,4.24135,2357.8,2357.3,0.7626]
[1728004945404,4.24146,2357.7,2357.3,0.7626]
[1728004948305,4.24135,2357.8,2357.3,0.4252]
[1728004948623,4.241,2358.0,2357.4,0.7626]
[1728004948854,4.2411,2357.9,2357.4,0.7626]
[1728004949014,4.241,2358.0,2357.5,0.4252]
[1728004949212,4.241,2358.0,2357.6,0.7626]
[1728004949613,4.24063,2358.2,2357.7,0.08482376]
[1728004949855,4.24063,2358.2,2357.8,0.7626]
[1728004950054,4.24027,2358.4,2357.9,4.32586829]
[1728004950263,4.24002,2358.5,2358.0,3.0]
[1728004950435,0.1178821,2358.7,2358.2,1.1878]
[1728004950620,0.1178821,2358.7,2358.3,0.84739972]
[1728004950824,4.3575821,2358.7,2358.3,0.7626]
[1728004951371,0.1178821,2358.7,2358.4,0.08479416]
[1728004951517,0.1178821,2358.7,2358.5,0.84738981]
[1728004951856,0.1178821,2358.7,2358.5,0.7626]
[1728004952265,0.1178821,2358.7,2358.5,1.3054]
[1728004952729,4.3575721,2358.7,2358.5,0.7626]
[1728004953763,8.5973121,2358.7,2358.5,0.7626]
[1728004954122,4.3575721,2358.7,2358.5,0.7626]
[1728004954364,4.2398,2358.6,2358.5,0.7626]
[1728004954721,4.2398,2358.6,2358.3,0.4252]
[1728004954722,4.2398,2358.6,2358.3,1.2083]
[1728004954919,4.2398,2358.6,2358.3,0.7831]
[1728004955125,4.24045,2358.3,2358.1,1.2083]
[1728004955324,4.24045,2358.3,2358.1,0.7831]
[1728004955823,4.24009,2358.5,2358.1,0.7831]
[1728004956024,8.5973721,2358.7,2358.1,0.7831]